bitfinex-derivatives/quotes_BTCF0:USTF0_20250905
["timestamp","ask_amount","ask_price","bid_price","bid_amount"]
[1757095935394,0.01382,110870.0,110850.0,1.10644612]
[1757095935594,0.03515,110870.0,110860.0,0.75209152]
[1757095935795,0.86813,110870.0,110860.0,0.75209152]
[1757095937895,0.86813,110870.0,110860.0,0.75309152]
[1757095938596,0.86913,110870.0,110860.0,0.75309152]
[1757095939191,0.86813,110870.0,110860.0,0.75309152]
[1757095940096,0.86813,110870.0,110860.0,0.38381]
[1757095940296,0.86813,110870.0,110860.0,0.75309152]
[1757095943898,0.03505,110870.0,110860.0,0.84328992]
[1757095944095,0.01402,110880.0,110860.0,1.10382992]
[1757095944293,0.05730871,110880.0,110870.0,0.75209152]
[1757095944490,0.89008871,110880.0,110870.0,0.75209152]
[1757095944694,0.89008871,110880.0,110870.0,0.76150152]
[1757095945101,0.89008871,110880.0,110870.0,0.38281]
[1757095945303,0.89008871,110880.0,110870.0,0.75209152]
[1757095946905,0.89108871,110880.0,110870.0,0.75209152]
[1757095947297,0.89104871,110880.0,110870.0,0.75209152]
[1757095947498,0.86909,110880.0,110870.0,0.76150152]
[1757095947792,0.85513,110880.0,110870.0,1.01150152]
[1757095950608,0.85513,110880.0,110870.0,1.10169182]
[1757095950802,0.85513,110880.0,110870.0,1.1109267]
[1757095951004,0.85513,110880.0,110870.0,1.18364603]
[1757095951906,0.85513,110880.0,110870.0,1.09345573]
[1757095952101,0.85513,110880.0,110870.0,0.80495451]
[1757095952308,0.86824,110880.0,110870.0,0.70552933]
[1757095952508,0.86824,110880.0,110870.0,1.07481085]
[1757095956012,0.85513,110880.0,110870.0,1.08422085]
[1757095958213,0.86824,110880.0,110870.0,1.08422085]
[1757095959315,0.86824,110880.0,110870.0,0.82481085]
[1757095962114,0.86824,110880.0,110870.0,0.45552933]
[1757095962419,0.86824,110880.0,110870.0,0.82481085]
[1757095963119,0.89023039,110880.0,110870.0,0.82481085]
[1757095963320,0.86824,110880.0,110870.0,0.82481085]
[1757095964113,0.86824,110880.0,110870.0,0.07271933]
[1757095964114,1.5095118,110880.0,110870.0,0.07271933]
[1757095964319,1.5095118,110880.0,110870.0,0.3608]
[1757095966729,0.03473,110870.0,110860.0,0.3608]
[1757095966923,0.03473,110850.0,110840.0,0.3608]
[1757095967126,0.0127,110830.0,110820.0,0.21815369]
[1757095967417,0.0127,110830.0,110820.0,0.80284344]
[1757095967418,1.24465152,110830.0,110820.0,0.80284344]
[1757095967617,1.86435543,110830.0,110810.0,0.15242854]
[1757095967826,0.40401152,110820.0,110810.0,0.18546854]
[1757095968015,0.40401152,110820.0,110810.0,0.1042251]
[1757095968219,0.03473,110820.0,110810.0,0.1042251]
[1757095968417,0.03473,110820.0,110810.0,0.4650251]
[1757095969018,0.03473,110820.0,110810.0,0.4550251]
[1757095970019,0.03473,110820.0,110810.0,0.82430662]
[1757095970323,0.02203,110820.0,110810.0,1.08484662]
[1757095970524,0.46328,110830.0,110810.0,1.08484662]
[1757095970725,0.48531,110830.0,110820.0,0.75312152]
[1757095970926,0.48521,110830.0,110820.0,0.75312152]
[1757095971224,0.87489,110830.0,110820.0,0.75312152]
[1757095971624,0.87477,110830.0,110820.0,0.75312152]
[1757095972823,0.87477,110830.0,110820.0,0.38384]
[1757095973525,0.87477,110830.0,110820.0,0.75338952]
[1757095973526,1.24431952,110830.0,110820.0,0.75338952]
[1757095975319,1.24431952,110830.0,110820.0,0.38384]
[1757095975521,1.24431952,110830.0,110820.0,0.75338952]
[1757095976322,0.03473,110820.0,110810.0,0.53626854]
[1757095976528,0.77382904,110820.0,110810.0,0.53626854]
[1757095976822,0.40427952,110820.0,110810.0,0.90581806]
[1757095977532,0.40427952,110820.0,110810.0,0.53626854]
[1757095977725,0.40427952,110820.0,110810.0,0.90581806]
[1757095978125,0.40427952,110820.0,110810.0,0.90681806]
[1757095978830,0.40427952,110820.0,110810.0,0.90781806]
[1757095979130,0.40427952,110820.0,110810.0,0.53826854]
[1757095979330,0.40427952,110820.0,110810.0,0.90781806]
[1757095980227,0.40427952,110820.0,110810.0,0.53826854]
[1757095980433,0.40427952,110820.0,110810.0,0.90781806]
[1757095982430,1.24291952,110820.0,110810.0,0.90781806]
[1757095982736,0.03473,110820.0,110810.0,0.90781806]
[1757095982934,0.83832,110820.0,110810.0,1.16835806]
[1757095983831,0.86035,110820.0,110810.0,1.16835806]
[1757095984931,0.86035,110820.0,110810.0,1.08711462]
[1757095986027,0.0128,110830.0,110810.0,1.54690284]
[1757095986230,0.35969,110830.0,110820.0,1.13232904]
[1757095986431,0.35959,110830.0,110820.0,1.13232904]
[1757095987131,0.37229,110830.0,110820.0,1.13232904]
[1757095987327,0.87257,110830.0,110820.0,1.13232904]
[1757095988138,0.03473,110830.0,110820.0,1.13232904]
[1757095988337,0.87237,110830.0,110820.0,1.13232904]
[1757095989130,0.87221,110830.0,110820.0,1.13232904]
[1757095990439,0.03473,110830.0,110820.0,1.13232904]
[1757095990640,0.87221,110830.0,110820.0,1.13232904]
[1757095990936,0.02203,110830.0,110820.0,1.13232904]
[1757095991133,0.83716,110830.0,110820.0,1.13232904]
[1757095991532,0.83716,110830.0,110820.0,1.30380328]
[1757095991733,0.83716,110830.0,110820.0,1.21357248]
[1757095992638,0.02203,110830.0,110820.0,1.30380328]
[1757095992838,1.21938952,110840.0,110820.0,1.21357248]
[1757095993038,1.24141952,110840.0,110830.0,0.75338952]
[1757095993240,1.24131952,110840.0,110830.0,0.75338952]
[1757095995236,1.24231952,110840.0,110830.0,0.75338952]
[1757095996240,1.24331952,110840.0,110830.0,0.75338952]
[1757095996737,1.24331952,110840.0,110830.0,0.38384]
[1757095996931,1.24331952,110840.0,110830.0,0.75338952]
[1757095998044,1.24331952,110840.0,110830.0,0.38384]
[1757095998237,1.24331952,110840.0,110830.0,0.75338952]
[1757096003640,1.86286904,110840.0,110830.0,0.3608]
[1757096004648,1.86286904,110840.0,110820.0,0.73034952]
[1757096004844,0.40408952,110830.0,110820.0,0.3608]
[1757096005048,0.03454,110820.0,110810.0,0.90513806]
[1757096005251,1.60871904,110820.0,110810.0,0.4543451]
[1757096005548,1.23916952,110820.0,110810.0,0.82389462]
[1757096005943,1.26261729,110820.0,110810.0,0.82389462]
[1757096006344,1.23916952,110820.0,110810.0,0.82389462]
[1757096006845,1.23916952,110820.0,110810.0,0.4543451]
[1757096007047,1.63214199,110820.0,110810.0,0.4319851]
[1757096007248,1.63214199,110820.0,110810.0,0.0945451]
[1757096007550,1.63214199,110820.0,110810.0,0.4553451]
[1757096007848,1.88214199,110820.0,110810.0,0.4563451]
[1757096008749,1.88214199,110820.0,110810.0,0.4339851]
[1757096009451,1.88214199,110820.0,110810.0,0.3628]
[1757096009950,2.61249151,110820.0,110810.0,0.001]
[1757096010143,2.24294199,110820.0,110810.0,0.001]
[1757096010348,2.24294199,110820.0,110810.0,0.002]
[1757096010550,1.50384295,110820.0,110810.0,0.002]
[1757096010750,1.88214199,110820.0,110810.0,0.001]
[1757096011050,1.88258199,110820.0,110810.0,0.001]
[1757096011252,0.03454,110810.0,110800.0,0.38316]
[1757096011446,0.40408952,110810.0,110800.0,0.38316]
[1757096011857,0.87006,110810.0,110800.0,0.75270952]
[1757096012045,1.23960952,110810.0,110800.0,0.75270952]
[1757096013351,1.23960952,110810.0,110800.0,0.82514989]
[1757096013853,1.23960952,110810.0,110800.0,0.82714989]
[1757096014361,1.23980952,110810.0,110800.0,0.82714989]
[1757096017250,1.24879586,110810.0,110800.0,0.82714989]
[1757096017646,1.23980952,110810.0,110800.0,0.82714989]
[1757096019055,1.24900479,110810.0,110800.0,0.82714989]
[1757096019254,1.24900479,110810.0,110800.0,0.45760037]
[1757096020552,0.87945527,110810.0,110800.0,0.45760037]
[1757096020955,1.24900479,110810.0,110800.0,0.45760037]
[1757096021144,1.23980952,110810.0,110800.0,0.45760037]
[1757096022555,1.23980952,110810.0,110800.0,0.82714989]
[1757096023260,1.23980952,110810.0,110800.0,0.45760037]
[1757096023556,1.24890254,110810.0,110800.0,0.82714989]
[1757096023858,1.23980952,110810.0,110800.0,0.82714989]
[1757096025060,1.23960952,110810.0,110800.0,0.82714989]
[1757096027158,0.87006,110810.0,110800.0,0.82714989]
[1757096027661,1.23960952,110810.0,110800.0,0.82714989]
[1757096029264,0.87006,110810.0,110800.0,0.82714989]
[1757096029464,1.23960952,110810.0,110800.0,0.82714989]
[1757096030268,1.23960952,110810.0,110800.0,0.45760037]
[1757096030459,1.23960952,110810.0,110800.0,0.82714989]
[1757096032066,1.23852952,110810.0,110800.0,0.82714989]
[1757096032658,1.23852952,110810.0,110800.0,0.45760037]
[1757096032859,1.23852952,110810.0,110800.0,0.82714989]
[1757096033979,1.23852952,110810.0,110800.0,0.45760037]
[1757096034483,1.26143783,110810.0,110800.0,0.45760037]
[1757096034979,1.26163783,110810.0,110800.0,0.45760037]
[1757096035477,1.2618397,110810.0,110800.0,0.45760037]
[1757096037371,0.05744831,110810.0,110800.0,0.45760037]
[1757096037578,0.89176831,110810.0,110800.0,0.45760037]
[1757096037772,1.2615197,110810.0,110800.0,0.45760037]
[1757096040283,0.04433831,110810.0,110800.0,1.08998176]
[1757096040579,0.87837831,110810.0,110800.0,1.08998176]
[1757096041083,0.89147831,110810.0,110800.0,1.08998176]
[1757096041280,0.89147831,110810.0,110800.0,1.07735176]
[1757096044186,0.89147831,110810.0,110800.0,0.82735176]
[1757096044382,1.2612297,110810.0,110800.0,0.45760037]
[1757096045883,0.89147831,110810.0,110800.0,0.45760037]
[1757096046187,1.2612297,110810.0,110800.0,0.45760037]
[1757096046983,0.05743831,110810.0,110800.0,0.45760037]
[1757096047282,0.89155831,110810.0,110800.0,0.82735176]
[1757096047482,0.89155831,110810.0,110800.0,0.45760037]
[1757096048287,1.2613097,110810.0,110800.0,0.45760037]
[1757096056684,1.2609897,110810.0,110800.0,0.45760037]
[1757096058289,1.23808139,110810.0,110800.0,0.45760037]
[1757096058594,0.86833,110810.0,110800.0,0.45760037]
[1757096058785,1.23808139,110810.0,110800.0,0.45760037]
[1757096059491,0.86833,110810.0,110800.0,0.45760037]
[1757096059694,1.23808139,110810.0,110800.0,0.45760037]
[1757096061694,1.23808139,110810.0,110800.0,0.43524037]
[1757096061993,1.23808139,110810.0,110800.0,0.45737037]
[1757096062688,0.86821,110810.0,110800.0,0.45737037]
[1757096062888,0.86821,110810.0,110800.0,1.08975176]
[1757096063087,0.85511,110810.0,110800.0,1.08975176]
[1757096063283,0.86834,110810.0,110800.0,1.07712176]
[1757096064187,0.85511,110810.0,110800.0,1.08975176]
[1757096064397,0.02143,110810.0,110800.0,1.08975176]
[1757096064594,0.85631,110810.0,110800.0,1.08975176]
[1757096071402,0.02143,110810.0,110800.0,1.08975176]
[1757096071603,0.85523,110810.0,110800.0,1.08975176]
[1757096073101,0.02143,110810.0,110800.0,0.72000037]
[1757096073304,0.85511,110810.0,110800.0,1.08975176]
[1757096073496,0.86834,110810.0,110800.0,1.08975176]
[1757096075403,0.03466,110810.0,110800.0,1.08975176]
[1757096075606,0.63878,110810.0,110800.0,1.08975176]
[1757096076197,0.86834,110810.0,110800.0,1.08975176]
[1757096076405,0.86834,110810.0,110800.0,0.70737037]
[1757096076595,0.86834,110810.0,110800.0,1.07712176]
[1757096077191,0.03466,110810.0,110800.0,1.07712176]
[1757096077393,0.86834,110810.0,110800.0,1.07712176]
[1757096079308,0.86834,110810.0,110800.0,0.82712176]
[1757096084312,0.86834,110810.0,110800.0,0.83975176]
[1757096085414,0.86834,110810.0,110800.0,0.82712176]
[1757096087114,0.86834,110810.0,110800.0,0.45737037]
[1757096087316,0.86834,110810.0,110800.0,0.82712176]
[1757096090921,0.86834,110810.0,110800.0,0.45737037]
[1757096091419,1.23809139,110810.0,110800.0,0.45737037]
[1757096095215,0.86834,110810.0,110800.0,0.82712176]
[1757096095417,1.2380081,110810.0,110800.0,0.82703847]
[1757096098527,1.2378481,110810.0,110800.0,1.19670657]
[1757096099025,1.2378481,110810.0,110800.0,0.82703847]
[1757096099226,1.2378481,110810.0,110800.0,1.19670657]
[1757096099926,0.86818,110810.0,110800.0,1.19670657]
[1757096100228,1.2378481,110810.0,110800.0,1.19670657]
[1757096101231,0.02143,110810.0,110800.0,1.20933657]
[1757096101419,0.0001,110820.0,110810.0,0.03332]
[1757096101625,0.55373266,110820.0,110810.0,0.7637881]
[1757096101820,0.02303,110820.0,110810.0,0.7637881]
[1757096102125,0.85651,110820.0,110810.0,0.7637881]
[1757096102325,0.01321,110830.0,110810.0,1.2236949]
[1757096102536,0.04598519,110830.0,110820.0,1.1323062]
[1757096102826,1.00993329,110830.0,110820.0,0.7626381]
[1757096103030,1.00993329,110830.0,110820.0,0.7532481]
[1757096104532,1.00993329,110830.0,110820.0,0.38358]
[1757096104933,1.00993329,110830.0,110820.0,0.7532481]
[1757096105136,1.00993329,110830.0,110820.0,0.76316946]
[1757096105934,1.00993329,110830.0,110820.0,0.7542481]
[1757096106533,1.26293329,110830.0,110820.0,0.7542481]
[1757096109540,1.26289329,110830.0,110820.0,0.7542481]
[1757096110242,1.26289329,110830.0,110820.0,1.1239162]
[1757096110743,1.26289329,110830.0,110820.0,0.76328013]
[1757096110935,1.2399981,110830.0,110820.0,1.13294823]
[1757096111643,0.0128,110840.0,110820.0,1.14233823]
[1757096111851,0.83332,110830.0,110820.0,0.86290063]
[1757096112150,0.83332,110830.0,110820.0,1.13347013]
[1757096113050,0.83332,110830.0,110820.0,1.50313823]
[1757096113450,0.83332,110830.0,110820.0,1.59336883]
[1757096113646,0.3824681,110840.0,110820.0,1.84336883]
[1757096113844,0.83328,110830.0,110820.0,0.86190073]
[1757096114142,0.83328,110830.0,110820.0,1.22370073]
[1757096114849,0.83328,110830.0,110820.0,2.72370073]
[1757096115050,0.83328,110830.0,110820.0,3.09336883]
[1757096115851,0.84604,110840.0,110820.0,3.09336883]
[1757096116148,0.03583,110840.0,110830.0,0.8422405]
[1757096116348,0.85627,110840.0,110830.0,1.2213186]
[1757096116551,0.85627,110840.0,110830.0,0.7614281]
[1757096116843,0.02303,110840.0,110830.0,0.7614281]
[1757096117053,0.01408,110850.0,110830.0,1.2213186]
[1757096117254,0.87031,110850.0,110840.0,1.1001362]
[1757096117461,0.87021,110850.0,110840.0,1.1001362]
[1757096117955,0.03697,110850.0,110840.0,1.1001362]
[1757096118159,0.87021,110850.0,110840.0,1.1001362]
[1757096118352,0.87017,110850.0,110840.0,1.1001362]
[1757096118957,0.03697,110850.0,110840.0,1.1001362]
[1757096119252,0.03697,110850.0,110840.0,1.1127662]
[1757096119459,0.02299,110850.0,110840.0,1.2029805]
[1757096119656,1.78171,110860.0,110850.0,0.02155]
[1757096119850,2.63760198,110860.0,110850.0,0.7520181]
[1757096120757,2.63760198,110860.0,110850.0,0.76118772]
[1757096121260,2.63860198,110860.0,110850.0,0.76118772]
[1757096121651,2.64260198,110860.0,110850.0,0.76118772]
[1757096123459,3.01227008,110860.0,110850.0,0.76118772]
[1757096123959,0.89796198,110860.0,110850.0,0.76118772]
[1757096124556,0.06476198,110860.0,110850.0,0.77172772]
[1757096124759,0.88382198,110860.0,110850.0,0.86193382]
[1757096125064,0.88382198,110860.0,110850.0,0.77172772]
[1757096126355,0.02779198,110860.0,110850.0,1.23160192]
[1757096126560,0.27766198,110860.0,110850.0,1.23160192]
[1757096126757,0.25487,110860.0,110850.0,1.23160192]
[1757096127063,0.25487,110860.0,110850.0,0.86193382]
[1757096127357,0.25487,110860.0,110850.0,1.23160192]
[1757096127562,0.02799,110860.0,110850.0,1.23160192]
[1757096128158,0.0507728,110860.0,110850.0,0.86193382]
[1757096130063,0.0507728,110860.0,110850.0,0.77172772]
[1757096132166,0.4333809,110860.0,110850.0,0.7520181]
[1757096135062,0.4333809,110860.0,110850.0,0.38235]
[1757096135263,0.4333809,110860.0,110850.0,0.7520181]
[1757096136570,0.4105981,110860.0,110850.0,0.7520181]
[1757096138770,1.2433981,110860.0,110850.0,0.7520181]
[1757096139972,0.87373,110860.0,110850.0,0.7520181]
[1757096140470,0.87373,110860.0,110850.0,0.38235]
[1757096140779,1.2433981,110860.0,110850.0,0.7520181]
[1757096144978,0.87373,110860.0,110850.0,0.7520181]
[1757096145179,1.2433981,110860.0,110850.0,0.7520181]
[1757096145379,0.005,110860.0,110850.0,1.1322262]
[1757096145578,0.005,110860.0,110850.0,0.7625581]
[1757096145880,0.02642,110860.0,110850.0,0.7625581]
[1757096146376,0.03988,110860.0,110850.0,0.7520181]
[1757096146577,0.03988,110860.0,110850.0,0.8422242]
[1757096147080,0.4095481,110860.0,110850.0,0.8422242]
[1757096147382,0.03988,110860.0,110850.0,0.8422242]
[1757096148481,0.03988,110860.0,110850.0,0.4725561]
[1757096148682,0.02642,110860.0,110850.0,1.2224323]
[1757096148886,0.02642,110860.0,110850.0,0.8527642]
[1757096150682,0.02242,110860.0,110850.0,0.8537642]
[1757096151280,0.02142,110860.0,110850.0,0.8537642]
[1757096151584,0.03488,110860.0,110850.0,0.8557642]
[1757096154380,0.03488,110860.0,110850.0,0.7550181]
[1757096154583,0.4045481,110860.0,110850.0,0.7550181]
[1757096154975,0.03488,110860.0,110850.0,0.7550181]
[1757096155582,0.03488,110860.0,110850.0,0.75466837]
[1757096155780,0.03488,110860.0,110850.0,0.84487447]
[1757096156084,0.03488,110860.0,110850.0,0.85541447]
[1757096158591,0.03488,110860.0,110850.0,0.4860961]
[1757096158791,0.03488,110860.0,110850.0,0.84487447]
[1757096159688,0.03488,110860.0,110850.0,0.38535]
[1757096159891,0.0576813,110860.0,110850.0,0.75466837]
[1757096160687,0.0576813,110860.0,110850.0,0.84487447]
[1757096164688,0.03488,110860.0,110850.0,0.84487447]
[1757096168908,0.02142,110860.0,110850.0,0.85541447]
[1757096169107,0.02142,110860.0,110850.0,0.4860961]
[1757096169310,0.02142,110860.0,110850.0,0.85541447]
[1757096174214,0.03488,110860.0,110850.0,0.84487447]
[1757096175107,0.0001,110870.0,110860.0,0.00939]
[1757096175313,0.02268215,110870.0,110860.0,2.35093947]
[1757096175615,0.02209,110870.0,110860.0,2.35093947]
[1757096175915,0.02209,110870.0,110860.0,1.9816211]
[1757096176115,0.02209,110870.0,110860.0,2.35093947]
[1757096176517,0.02209,110870.0,110860.0,2.35193947]
[1757096176813,0.02209,110870.0,110860.0,2.42340992]
[1757096183623,0.02209,110870.0,110860.0,2.05409155]
[1757096183816,0.02209,110870.0,110860.0,2.42340992]
[1757096184517,0.04476441,110870.0,110860.0,2.42340992]
[1757096185320,0.04476441,110870.0,110860.0,2.33321882]
[1757096187424,0.04476441,110870.0,110860.0,1.96390045]
[1757096187618,0.04476441,110870.0,110860.0,2.33321882]
[1757096188517,0.04476441,110870.0,110860.0,2.42341682]
[1757096190121,0.04476441,110870.0,110860.0,2.33321882]
[1757096193630,0.04476441,110870.0,110860.0,2.42341682]
[1757096195728,0.02267441,110870.0,110860.0,2.42341682]
[1757096196532,0.0001,110880.0,110860.0,2.42341682]
[1757096196739,0.02277639,110880.0,110870.0,0.76076837]
[1757096197030,0.02267639,110880.0,110870.0,0.76076837]
[1757096197231,0.01304,110890.0,110870.0,1.03095827]
[1757096197533,0.39779423,110890.0,110880.0,0.75135837]
[1757096197726,0.39769423,110890.0,110880.0,0.75135837]
[1757096198032,0.38475423,110890.0,110880.0,0.76398837]
[1757096198237,0.36209,110890.0,110880.0,0.76398837]
[1757096198628,0.37584,110890.0,110880.0,0.75135837]
[1757096198934,0.37684,110890.0,110880.0,0.75135837]
[1757096199124,0.37684,110890.0,110880.0,0.38204]
[1757096199331,0.37684,110890.0,110880.0,0.75135837]
[1757096199937,0.37984,110890.0,110880.0,0.75135837]
[1757096200331,0.37984,110890.0,110880.0,0.76021671]
[1757096200734,0.37984,110890.0,110880.0,0.77284671]
[1757096201234,0.37984,110890.0,110880.0,0.39089834]
[1757096201434,0.37984,110890.0,110880.0,0.76021671]
[1757096203139,0.36609,110890.0,110880.0,0.77284671]
[1757096203733,0.37984,110890.0,110880.0,0.77284671]
[1757096204237,0.37984,110890.0,110880.0,0.76020037]
[1757096204741,0.4024647,110890.0,110880.0,0.76020037]
[1757096205835,0.1524647,110890.0,110880.0,0.76020037]
[1757096207243,0.0624647,110890.0,110880.0,0.76020037]
[1757096210843,0.03984,110890.0,110880.0,0.76020037]
[1757096211343,0.06245439,110890.0,110880.0,0.76020037]
[1757096212143,0.03984,110890.0,110880.0,0.76020037]
[1757096212447,0.03984,110890.0,110880.0,0.390882]
[1757096212744,0.03984,110890.0,110880.0,0.76020037]
[1757096213444,0.06245369,110890.0,110880.0,0.76020037]
[1757096214646,0.03984,110890.0,110880.0,0.76020037]
[1757096216646,0.03984,110890.0,110880.0,0.390882]
[1757096216846,0.03984,110890.0,110880.0,0.76020037]
[1757096217445,0.40898167,110890.0,110880.0,0.76002367]
[1757096217845,0.40898167,110890.0,110880.0,0.75118167]
[1757096218236,0.40898167,110890.0,110880.0,0.38204]
[1757096218443,0.03984,110890.0,110880.0,0.75118167]
[1757096218637,0.40898167,110890.0,110880.0,0.75118167]
[1757096222455,0.87132,110890.0,110880.0,0.75118167]
[1757096222748,0.40898167,110890.0,110880.0,1.12032334]
[1757096222949,0.02609,110890.0,110880.0,1.13295334]
[1757096223147,0.004,110890.0,110880.0,1.13295334]
[1757096223341,0.004,110890.0,110880.0,1.22313504]
[1757096223550,0.004,110890.0,110880.0,1.13295334]
[1757096225057,0.01771,110890.0,110880.0,1.13295334]
[1757096225760,0.38685167,110890.0,110880.0,1.13295334]
[1757096225955,0.40950873,110890.0,110880.0,1.12032334]
[1757096226155,0.43278873,110890.0,110880.0,0.75118167]
[1757096227058,0.43278873,110890.0,110880.0,1.12032334]
[1757096227450,0.43278873,110890.0,110880.0,0.38204]
[1757096227653,0.06364706,110890.0,110880.0,0.75118167]
[1757096227848,0.43278873,110890.0,110880.0,0.38204]
[1757096228051,0.43278873,110890.0,110880.0,1.12032334]
[1757096230164,0.43278873,110890.0,110880.0,0.75118167]
[1757096230963,0.43278873,110890.0,110880.0,0.38204]
[1757096231163,0.43278873,110890.0,110880.0,0.75118167]
[1757096232564,0.43278873,110890.0,110880.0,1.12032334]
[1757096233165,0.43278873,110890.0,110880.0,0.75118167]
[1757096235268,0.43278873,110890.0,110880.0,0.38204]
[1757096235460,0.43278873,110890.0,110880.0,0.75118167]
[1757096235970,0.06364706,110890.0,110880.0,2.25118167]
[1757096236263,0.43278873,110890.0,110880.0,2.25118167]
[1757096237064,0.43278873,110890.0,110880.0,0.38204]
[1757096240966,0.43278873,110890.0,110880.0,0.3608]
[1757096241467,0.68278873,110890.0,110880.0,0.3608]
[1757096242061,0.68278873,110890.0,110880.0,0.38188]
[1757096242967,1.51390873,110890.0,110880.0,0.75102167]
[1757096243168,1.51390873,110890.0,110880.0,0.38188]
[1757096243367,1.51390873,110890.0,110880.0,0.75102167]
[1757096243569,1.14476706,110890.0,110880.0,0.75102167]
[1757096243767,1.51390873,110890.0,110880.0,0.75102167]
[1757096244369,0.68278873,110890.0,110880.0,0.75102167]
[1757096244569,1.51386873,110890.0,110880.0,0.75102167]
[1757096248375,1.51386873,110890.0,110880.0,0.38188]
[1757096248568,1.51386873,110890.0,110880.0,0.75102167]
[1757096248875,1.51386873,110890.0,110870.0,0.3608]
[1757096248876,1.8830104,110890.0,110870.0,0.3608]
[1757096249173,0.77406334,110880.0,110870.0,0.3608]
[1757096249473,0.7967204,110880.0,110870.0,0.3608]
[1757096249865,0.03578,110870.0,110860.0,0.82249212]
[1757096250173,1.25857873,110870.0,110860.0,0.84249212]
[1757096250374,1.25857873,110870.0,110860.0,0.47335045]
[1757096250674,0.42757873,110870.0,110860.0,0.84249212]
[1757096250874,1.25857873,110870.0,110860.0,0.84249212]
[1757096251776,1.25853873,110870.0,110860.0,0.84249212]
[1757096252475,1.25853873,110870.0,110860.0,0.84349212]
[1757096254579,1.23588167,110870.0,110860.0,0.84349212]
[1757096255080,0.40492167,110870.0,110860.0,0.84349212]
[1757096255272,1.23588167,110870.0,110860.0,0.84349212]
[1757096256384,0.40492167,110870.0,110860.0,0.84349212]
[1757096256683,1.23584167,110870.0,110860.0,0.84349212]
[1757096257180,0.85282,110870.0,110860.0,1.22202379]
[1757096258674,0.8667,110870.0,110860.0,1.21263379]
[1757096258875,1.23584167,110870.0,110860.0,1.21263379]
[1757096259881,0.8667,110870.0,110860.0,1.21263379]
[1757096260080,1.23584167,110870.0,110860.0,1.21263379]
[1757096261078,1.23584167,110870.0,110860.0,0.84349212]
[1757096263482,1.23584167,110870.0,110860.0,1.21263379]
[1757096268583,0.85282,110870.0,110860.0,1.22202379]
[1757096268787,1.23550167,110870.0,110860.0,1.22202379]
[1757096270176,1.23550167,110870.0,110860.0,0.84349212]
[1757096270785,1.23550167,110870.0,110860.0,0.47435045]
[1757096270983,1.23550167,110870.0,110860.0,0.84349212]
[1757096271484,1.23550167,110870.0,110860.0,0.47435045]
[1757096271683,1.23550167,110870.0,110860.0,0.84349212]
[1757096272489,1.23550167,110870.0,110860.0,0.47435045]
[1757096272791,1.23550167,110870.0,110860.0,0.84349212]
[1757096274688,0.86636,110870.0,110860.0,0.84349212]
[1757096274886,1.23550167,110870.0,110860.0,0.84349212]
[1757096275389,0.86636,110870.0,110860.0,0.84349212]
[1757096275689,1.23550167,110870.0,110860.0,0.84349212]
[1757096279688,1.23566726,110870.0,110860.0,0.47435045]
[1757096280285,1.25834517,110870.0,110860.0,0.47435045]
[1757096280781,1.23526726,110870.0,110860.0,0.47435045]
[1757096281390,0.86596,110870.0,110860.0,0.47435045]
[1757096281683,0.86592,110870.0,110860.0,0.84365771]
[1757096281890,0.03544,110870.0,110860.0,0.84365771]
[1757096282191,0.86592,110870.0,110860.0,0.84365771]
[1757096282381,0.83048,110870.0,110860.0,0.94324561]
[1757096282580,0.85168,110870.0,110860.0,0.94324561]
[1757096282896,0.83048,110870.0,110860.0,0.94324561]
[1757096283079,0.85168,110870.0,110860.0,0.94324561]
[1757096283686,0.85168,110870.0,110860.0,0.85304771]
[1757096284695,0.86522,110870.0,110860.0,0.85304771]
[1757096285791,0.85168,110870.0,110860.0,1.07304771]
[1757096286598,0.86522,110870.0,110860.0,0.86365771]
[1757096286985,0.86522,110870.0,110860.0,0.49435045]
[1757096291597,0.86506,110870.0,110860.0,0.49435045]
[1757096292098,0.0212,110870.0,110860.0,0.87304771]
[1757096292292,0.53588,110870.0,110860.0,0.87304771]
[1757096292797,0.54942,110870.0,110860.0,0.87304771]
[1757096292996,0.86502,110870.0,110860.0,0.87304771]
[1757096293201,0.01398,110880.0,110860.0,1.21324571]
[1757096293399,0.0001,110880.0,110870.0,0.76179726]
[1757096293599,0.02267208,110880.0,110870.0,0.85198476]
[1757096294502,0.02367208,110880.0,110870.0,0.85198476]
[1757096295210,0.02267208,110880.0,110870.0,0.85198476]
[1757096295405,0.04387208,110880.0,110870.0,0.76279726]
[1757096295710,0.04387208,110880.0,110870.0,0.76479726]
[1757096295911,0.05656208,110880.0,110870.0,0.76479726]
[1757096296912,0.04387208,110880.0,110870.0,0.76479726]
[1757096297106,0.04387208,110880.0,110870.0,0.85498706]
[1757096297803,0.02267208,110880.0,110870.0,0.85498706]
[1757096298003,0.02267208,110880.0,110870.0,0.4856798]
[1757096298205,0.02267208,110880.0,110870.0,0.85498706]
[1757096298603,0.04419208,110880.0,110870.0,0.85498706]
[1757096298807,0.04419208,110880.0,110870.0,1.13498706]
[1757096298808,0.02267208,110880.0,110870.0,1.13498706]
[1757096304614,0.0001,110890.0,110880.0,0.01263]
[1757096304816,0.04416465,110890.0,110880.0,0.76445726]
[1757096305317,0.04416465,110890.0,110880.0,0.85463896]
[1757096306218,0.02152,110890.0,110880.0,0.85563896]
[1757096309015,0.03421,110890.0,110880.0,0.76545726]
[1757096309216,0.02152,110890.0,110880.0,0.76545726]
[1757096313513,0.02152,110890.0,110880.0,0.85563896]
[1757096314117,0.02152,110890.0,110880.0,0.76545726]
[1757096317725,0.02152,110890.0,110880.0,0.85563896]
[1757096317922,0.03508,110900.0,110890.0,0.03226]
[1757096318127,0.04414592,110900.0,110890.0,0.76236726]
[1757096318329,0.04414592,110900.0,110890.0,0.85254086]
[1757096318520,0.02152,110900.0,110890.0,0.85254086]
[1757096319423,0.02152,110900.0,110890.0,0.85554086]
[1757096320433,0.02152,110900.0,110890.0,0.8644086]
[1757096320833,0.02152,110900.0,110890.0,0.774235]
[1757096322433,0.04412644,110900.0,110890.0,0.774235]
[1757096325826,0.05795644,110900.0,110890.0,0.774235]
[1757096326028,0.05795644,110900.0,110890.0,0.40492774]
[1757096326227,0.05795644,110900.0,110890.0,0.774235]
[1757096327638,0.04412644,110900.0,110890.0,0.774235]
[1757096328539,0.04412644,110900.0,110890.0,0.8644086]
[1757096332143,0.04412644,110900.0,110890.0,0.774235]
[1757096332443,0.05795644,110900.0,110890.0,0.774235]
[1757096333340,0.4272637,110900.0,110890.0,0.38552]
[1757096333538,0.4272637,110900.0,110890.0,0.69552]
[1757096333843,0.4272637,110900.0,110890.0,0.38552]
[1757096335242,0.88719644,110900.0,110890.0,0.38552]
[1757096335546,1.5065037,110900.0,110890.0,0.38552]